Cogmind - Beta 17.1 @@@ ROGUE MODE // 2026.09.18 @ 11:58:47 Player: 4R-ZE3 Result: Destroyed by VR-6Y3(R) with Subdweller Laser Performance ------------- Evolutions (0) 0 Regions Visited (2) 400 Robots Destroyed (17) 85 Value Destroyed (557) 557 Prototype IDs (0) 0 Alien Tech Used (0) 0 Bonus (0) 0 TOTAL SCORE: 1042 Bonus ------- None Cogmind --------- Core Integrity 0/250 Matter 252/300 Energy 123/125 System Corruption 3% Temperature Cool (10) Movement Treading (160) Location -10/Subcaves Parts ------- > --- POWER (1) -------- Light Ion Engine > --- PROPULSION (2) --- Light Treads Light Treads > --- UTILITY (2) ------ Small Storage Unit Targeting Computer > --- WEAPON (2) ------- Subdweller Beam Cannon Light Cannon > --- INVENTORY (8) ---- Light Treads Light Treads Improved Heat Sink Beam Rifle Heavy Battle Rifle Light Cannon Ripper Peak State ------------ > --- POWER ------------ Light Ion Engine > --- PROPULSION ------- Light Treads Light Treads > --- UTILITY ---------- Improved Heat Sink Small Storage Unit > --- WEAPON ----------- EM Pulse Gun Particle Gun > --- INVENTORY -------- Light Ion Engine Light Treads Light Treads Light Treads Light Treads Medium Laser Assault Rifle Assault Rifle [Rating: 10] Favorites ----------- Power Light Ion Engine Engine Light Ion Engine Power Core Light Nuclear Core Propulsion Light Treads Treads Light Treads Leg Aluminum Leg Utility Small Storage Unit Device Improved Heat Sink Storage Small Storage Unit Processor Targeting Computer Protection Light Armor Plating Weapon Light Cannon Energy Gun Medium Laser Energy Cannon Subdweller Beam Cannon Ballistic Gun Assault Rifle Ballistic Cannon Light Cannon Build | -11 -10 -10 ------- Run | Yrd Mat Sub Slots Evolved . | . . . Power . | . . . Propulsion . | . . . Utility . | . . . Weapon . | . . . Parts Attached 18 | . 13 5 Power 3 | . 2 1 Engine 2 | . 1 1 Core 1 | . 1 . Reactor . | . . . Propulsion 4 | . 2 2 Treads 4 | . 2 2 Leg . | . . . Wheel . | . . . Hover . | . . . Flight . | . . . Utility 3 | . 3 . Device 1 | . 1 . Storage . | . . . Processor 1 | . 1 . Hackware . | . . . Protection 1 | . 1 . Artifact . | . . . Weapon 8 | . 6 2 Energy Gun 3 | . 3 . Energy Cannon 1 | . . 1 Ballistic Gun 1 | . 1 . Ballistic Cannon 3 | . 2 1 Launcher . | . . . Special Weapon . | . . . Impact Weapon . | . . . Slashing Weapon . | . . . Piercing Weapon . | . . . Special Melee Weapon . | . . . Unidentified Prototypes . | . . . Parts Lost 7 | . 3 4 Power 2 | . 1 1 Propulsion 2 | . . 2 Utility . | . . . Weapon 3 | . 2 1 Highest Loss Streak 3 | . 2 3 To Critical Strikes . | . . . Average Backups 7 | . 7 7 Power . | . 1 . Propulsion 3 | . 4 3 Utility . | . . 1 Weapon 2 | . 1 2 Tool/Special . | . . . Unused Backups 14 | . 8 6 Power . | . . . Propulsion 7 | . 5 2 Utility 2 | . 1 1 Weapon 5 | . 2 3 Tool/Special . | . . . Average Slot Usage (%) 98 | . 97 99 Engine 8 | . 12 4 Core 5 | . 1 8 Treads 27 | . 27 27 Device 3 | . 7 . Storage 14 | . 14 14 Processor 8 | . 2 14 Energy Gun 6 | . 13 . Energy Cannon 2 | . . 4 Ballistic Gun 4 | . 8 . Ballistic Cannon 15 | . 6 23 Peak Build Rating 10 | . 10 10 Average Rating 8 | . 8 9 On Entrance 7 | 6 6 10 Avg Prop Armor Cover (%) . | . . . Naked Turns . | . . . Heaviest Build 19 | 12 17 19 Greatest Support 40 | 20 40 40 Greatest Overweight (x) . | . . . Average Overweight (x) . | . . . Largest Inventory Capacity 8 | . 8 8 Average Capacity 8 | . 8 8 Most Carried 8 | . 8 8 Average Carried 7 | . 7 7 Final Capacity 8 | 8 8 8 Final Carried 8 | 6 8 7 Class Distribution -------------------- 100% | Mutant Dominant Class ---------------- Mutant | -10/Materials Mutant | -10/Subcaves Resources | -11 -10 -10 ----------- Run | Yrd Mat Sub Matter Collected 578 | 200 224 154 Remotely . | . . . Salvage Created 621 | . 572 49 Parts 30 | . 28 2 Haulers Intercepted 1 | . 1 . Recyclers Shooed . | . . . Parts Field Recycled . | . . . Retrieved Matter . | . . . Parts Self-Destructed 2 | . . 2 Prevented . | . . . Parts Restored . | . . . Kills | -11 -10 -10 ------- Run | Yrd Mat Sub Combat Hostiles Destroyed 15 | . 12 3 Guns 11 | . 11 . Cannons 3 | . . 3 AOE 1 | . 1 . Classes Destroyed 4 | . 3 1 Worker 1 | . 1 . Hauler 1 | . 1 . Grunt 12 | . 12 . Subdweller 3 | . . 3 Best Kill Streak 4 | . 4 1 Combat Bots Only 3 | . 3 1 Max Kills in Single Turn 1 | . 1 1 Gunslinging . | . . . Exploded 1 | . 1 . Melee . | . . . Uniques/NPCs Destroyed . | . . . Combat | -11 -10 -10 -------- Run | Yrd Mat Sub Hostile Shots Fired 100 | . 58 42 Missed 23 | . 17 6 Hits 77 | . 41 36 Projectile 77 | . 41 36 Critical Strikes 3 | . 1 2 Damage Taken 1355 | . 507 848 Core 257 | . 48 209 Absorbed by Shields . | . . . Core Remaining (%) 100 | 100 . . Volleys Fired 65 | . 39 26 Largest 2 | . 2 2 Hottest 115 | . 115 110 Shots Fired 127 | . 78 49 Gun 78 | . 78 . Cannon 49 | . . 49 Launcher . | . . . Special . | . . . Kinetic 62 | . 23 39 Thermal 50 | . 40 10 Explosive . | . . . Electromagnetic 15 | . 15 . Robot Hit Streak 16 | . 13 16 Robot Miss Streak 1 | . 1 1 Penetration Max . | . . . Secondary Targets . | . . . Shots Hit Robots 97 | . 59 38 Core Hits 30 | . 23 7 Critical Kills . | . . . Critical Parts Destroyed 1 | . 1 . Critical Strikes 5 | . 4 1 Burn 3 | . 3 . Destroy 1 | . 1 . Blast 1 | . . 1 Melee Attacks . | . . . Impact . | . . . Slashing . | . . . Piercing . | . . . Sneak Attacks . | . . . Combat Hostiles . | . . . Follow-up Attacks . | . . . Damage Inflicted 1454 | . 845 609 Guns 801 | . 801 . Cannons 609 | . . 609 Explosions 44 | . 44 . Melee . | . . . Ramming . | . . . Kinetic 688 | . 245 443 Thermal 603 | . 437 166 Explosive . | . . . Electromagnetic 163 | . 163 . Impact . | . . . Slashing . | . . . Piercing . | . . . Highest Corruption 3 | . 3 3 Average Corruption 2 | . 2 3 Corruption Purged . | . . . Corruption Blocked . | . . . Effects 21 | . 11 10 Message Errors 4 | . 2 2 Matter Fused 6 | . 4 2 Heat Flow Errors 2 | . 1 1 Energy Discharges 1 | . 1 . Parts Rejected 1 | . 1 . Data Loss (minor) 3 | . . 3 Data Loss (major) 2 | . 1 1 Misfires 1 | . . 1 Alerts 1 | . 1 . Overload Shots . | . . . Overflow Damage . | . . . Projectiles . | . . . Explosions . | . . . Melee . | . . . Knockbacks 5 | . . 5 Impact . | . . . Kinetic 4 | . . 4 Secondary 1 | . . 1 Self-Inflicted Damage . | . . . Shots . | . . . Rammed . | . . . Targets Rammed . | . . . Kicked . | . . . Crushed . | . . . Highest Temperature 291 | . 225 291 Average Temperature 75 | . 66 95 Received Heat Transfer 813 | . 297 516 Siege Activations . | . . . Martial Activations . | . . . Shielding Activations . | . . . Robots Disrupted . | . . . Combat Hostiles . | . . . Robots Corrupted . | . . . Combat Hostiles . | . . . Parts Fried . | . . . Impact Corruptions . | . . . Robots Melted . | . . . Combat Hostiles . | . . . Parts Melted 3 | . 3 . Heat Transferred 1604 | . 1382 222 Parts Sabotaged . | . . . Parts Stolen . | . . . Parts Stripped . | . . . Power Chain Reactions 1 | . 1 . Alert | -11 -10 -10 ------- Run | Yrd Mat Sub Maximum Alert Level . | . . . Low Security (%) 100 | . 100 . Level 1 . | . . . Level 2 . | . . . Level 3 . | . . . Level 4 . | . . . Level 5 . | . . . High Security . | . . . Max Security . | . . . Peak Influence 185 | . 185 . Initial . | . . . Average 103 | . 103 . Influence Increases 409 | . 409 . Destroy 0b10 Robot/C 240 | . 240 . Destroy 0b10 Robot/NC 10 | . 10 . Destroy Leader 52 | . 52 . Successful Hack 12 | . 12 . Select Force Hacks 60 | . 60 . Destroy Structure 5 | . 5 . Lose Combat Pursuer 30 | . 30 . Influence Decreases 409 | . 312 97 Entered New Map 47 | . . 47 Time Decay 332 | . 282 50 Lost Part 30 | . 30 . Squads Dispatched 4 | . 4 . Investigation 3 | . 3 . Extermination . | . . . Reinforcement 1 | . 1 . Assault . | . . . Garrison . | . . . Intercept . | . . . Searches Triggered . | . . . Construction Impeded . | . . . Haulers Reinforced . | . . . Active Scanning Responses . | . . . Cargo Convoy Interrupts . | . . . Stealth | -11 -10 -10 --------- Run | Yrd Mat Sub Distress Signals 1 | . 1 . Communications Jammed . | . . . Distress Signals . | . . . Times Spotted 25 | . 20 5 Peak Tracking Total 6 | . 6 3 Tactical Retreats 2 | . 2 . Traps | -11 -10 -10 ------- Run | Yrd Mat Sub Traps Triggered 4 | . 3 1 Indirectly . | . . . Trap Hack Attempts . | . . . Triggered . | . . . Disarmed . | . . . Reprogrammed . | . . . Reused . | . . . Traps Extracted . | . . . Installed . | . . . Triggered . | . . . Machines | -11 -10 -10 ---------- Run | Yrd Mat Sub Machines Disabled 1 | . . 1 Max in Single Turn 1 | . . 1 Machines Repaired . | . . . Machines Dismantled . | . . . Machines Sabotaged . | . . . Overloaded Fab Kills . | . . . Hacking | -11 -10 -10 --------- Run | Yrd Mat Sub Machines Accessed 4 | . 4 . Terminals 2 | . 2 . Fabricators . | . . . Repair Stations . | . . . Recycling Units 2 | . 2 . Scanalyzers . | . . . Garrison Access . | . . . Total Hacks 9 | . 9 . Successful 6 | . 6 . Failed 3 | . 3 . Catastrophic . | . . . Database Lockouts . | . . . Manual 10 | . 10 . Terminals 7 | . 7 . Fabricators . | . . . Repair Stations . | . . . Recycling Units 2 | . 2 . Scanalyzers . | . . . Garrison Access . | . . . Terminal Hacks 3 | . 3 . Record 1 | . 1 . Robot Analysis 1 | . 1 . Recycling Unit Index 1 | . 1 . Fabricator Hacks . | . . . Repair Station Hacks . | . . . Recycling Unit Hacks . | . . . Scanalyzer . | . . . Garrison Access Hacks . | . . . Unauthorized Hacks 3 | . 3 . Terminals 1 | . 1 . Botnet 1 | . 1 . Fabricators . | . . . Repair Stations . | . . . Recycling Units 2 | . 2 . Tunnel 2 | . 2 . Scanalyzers . | . . . Garrison Access . | . . . Data Cores Recovered . | . . . Used . | . . . Hacking Detections 3 | . 3 . Full Trace Events . | . . . Feedback Events . | . . . Feedback Blocked . | . . . Robot Schematics Acquired . | . . . Robots Built . | . . . Authchips . | . . . Time . | . . . Total Robot Build Rating . | . . . Part Schematics Acquired . | . . . Parts Built . | . . . Authchips . | . . . Time . | . . . Total Part Build Rating . | . . . Part Studies Acquired . | . . . Parts Repaired . | . . . Time . | . . . Parts Recycled . | . . . Recycled Matter . | . . . Retrieved Matter . | . . . Retrieved Components . | . . . Parts Scanalyzed . | . . . Part Schematics Acquired . | . . . Parts Damaged . | . . . Bothacking | -11 -10 -10 ------------ Run | Yrd Mat Sub Used RIF Installer . | . . . Robots Hacked . | . . . Non-combat . | . . . Combat . | . . . Robot Hacks Applied . | . . . Relay Couplers Released . | . . . Fabnet Peak Effective % . | . . . Robots Rewired . | . . . Allies Hacked . | . . . Hacks Repelled . | . . . Allies | -11 -10 -10 -------- Run | Yrd Mat Sub Total Allies . | . . . Largest Group . | . . . Highest-Rated Group . | . . . Highest-Rated Ally . | . . . Total Orders . | . . . Ally Attacks . | . . . Total Damage . | . . . Kills . | . . . Allies Corrupted . | . . . Allies Melted . | . . . Intel | -11 -10 -10 ------- Run | Yrd Mat Sub Active Infowar (turns) . | . . . Robot Analysis Total 1 | . 1 . Derelict Logs Recovered 2 | . . 2 Drone Launches . | . . . Drone Recoveries . | . . . Exploration | -11 -10 -10 ------------- Run | Yrd Mat Sub Turns Passed 1450 | . 695 755 Spaces Moved 731 | 1 311 419 Core . | . . . Treads 730 | . 311 419 Legs 1 | 1 . . Wheels . | . . . Hover . | . . . Flight . | . . . Fastest Speed 120 | 120 160 160 Average Speed 159 | 120 160 160 Slowest Speed 160 | 120 160 160 Overloaded Moves . | . . . Propulsion Burnouts . | . . . Robots Hopped . | . . . Potential Cave-ins . | . . . Cave-ins Triggered . | . . . Exploration Rate (%) 32 | 2 66 30 Regions Visited 2 Branch Regions 1 Pre-discovered Areas 2 | . 2 . Known Exits Taken . | . . . Unknown Exits Taken 2 | 1 1 . Scrap Searched 5 | . . 5 Spaces Dug . | . . . Terrain Destroyed 3 | . 3 . Melee . | . . . Projectile . | . . . AOE 3 | . 3 . Terrain Rammed . | . . . Walls Destroyed . | . . . Machines Disabled . | . . . Actions | -11 -10 -10 --------- Run | Yrd Mat Sub Total 890 | . 433 457 Wait 47 | . 45 2 Move 729 | . 310 419 Hop . | . . . Pick Up 15 | . 11 4 Fast Attach 8 | . 8 . Attach 6 | . 2 4 Detach 2 | . 2 . Swap 5 | . 4 1 Drop 13 | . 12 1 Fire 65 | . 39 26 Melee . | . . . Ram . | . . . Kick . | . . . Crush . | . . . Escape Stasis . | . . . Rewire . | . . . Trap . | . . . Miscellaneous . | . . . Route ------- -11/Scrapyard -10/Materials (discovered 5 exits: [*Mat x2] / [*Min x2] / [*Sub]) -10/Subcaves (discovered 1 exit: [*Scr]) History --------- Turn | Location | Event 1 | -11/Scrapyard | Discovered new exit (range 0) 1 | -11/Scrapyard | Entered Materials 2 | -10/Materials | Met a group of wandering Federalists 128 | -10/Materials | Discovered new exit (range 6) 317 | -10/Materials | Build established: Mutant 378 | -10/Materials | Discovered new exit (range 10) 580 | -10/Materials | Discovered new exit (range 15) 659 | -10/Materials | Discovered new exit (range 14) 666 | -10/Materials | Discovered new exit (range 9) 696 | -10/Materials | Entered Subcaves 697 | -10/Subcaves | Continued accompanying wandering Federalists (5) 706 | -10/Subcaves | Learned location of 1 exit from Materials 925 | -10/Subcaves | Learned 4 Materials zone layouts 978 | -10/Subcaves | Disturbed a concealed Subdweller 1208 | -10/Subcaves | Lost 3 parts (1p2n) 1414 | -10/Subcaves | Core integrity fell below 50% 1432 | -10/Subcaves | Visited 4L-MR0's lab 1446 | -10/Subcaves | Core integrity fell below 20% 1451 | -10/Subcaves | Destroyed by VR-6Y3(R) with Subdweller Laser Last Messages --------------- 01207_ Found Sub. Beam Cannon. 01207_ Found 67 Matter. 01208_ Acquired 38 matter. 01208_ Searching scrap... 01208_ Found Ripper. 01208_ Found Barrage Gun. 01208_ Found 54 Matter. 01213_ ML8R#5V8:XIUJPRPV GE6JHQPG 01213_ Acquired Ripper. 01217_ Acquired Hvy. Battle Rifle. 01220_ Acquired Sub. Beam Cannon. 01359_ System corrupted: Matter fused (-9). 01413_ Triggered Piercing Trap. 01413_ Spikes shoot up from the floor. 01413_ Critical hit (Impale). 01432_ Lgt. Cannon destroyed. 01434_ MU-SS6(R) knocked back. 01437_ VR-6Y3(R) knocked back. 01449_ MU-SS6(R) destroyed. 01449_ 7G-EHG(R) Sub. Power Source blasted off. Map ----- +----------------------------------------------------+ | ?# ###= #????## | | ## # # ##?## #### #????### ## | | ########???#####??## #??????###### | | #??????????????????#### #???????????# | | #????????????????????# ####???????# | | #?????????????????????# #??????### | | #??????????????????????# #?????? ## | | #????????????????????## #????? | | ??????????????????## #????# | | # ##?????????????????# ##### # | | # #####??????????????????# ### | | ## ##???????????????????????# #???## | | ?# ##????????????????????????# #?### | | ? #?????????????????????????# ## ##?# | | ? ##?????????????????????????## ### ##??# | | ? #???????????????????????????### ###?# | | ? ##????????????????##??????????# #### | | ?? ??????????????????#]#""??????## # # | | ??????????????????????#"#""#?????# > | | ??????????????????????# ""#?#####" | | ??????????????????????? X"#?# #"" # ## | | ???????????????????????%%R"#?# ##### | | ????????????????????????R%"??# ###?## | | ????????????????????????* "??# #" # ### | | ???????????????????????##/##### ## | | ?????????????????????###<@ ##" # | | ?????????????????????#<<<< < ## # | | ?????????????????????# < <<< << ## ### | | ?????????????????????# << <<<<<<### #?### | | ?????????????????????##<<< <<#### ##???? | | ??????????????????????########## ###????? | | ???????????????????????????????# #??????? | | ???????????????????????????????# ##??????? | | ???????????????????????????????# ## ####???????? | | ???????????????????????????????###?####??????????? | | ?????????????????????????????????????????????????? | | ?????????????????????????????????????????????????? | | ?????????????????????????????????????????????????? | | ?????????????????????????????????????????????????? | | ?????????????????????????????????????????????????? | | ?????????????????????????????????????????????????? | | ?????????????????????????????????????????????????? | | ?????????????????????????????????????????????????? | | ?????????????????????????????????????????????????? | | ?????????????????????????????????????????????????? | | ?????????????????????????????????????????????????? | | ?????????????????????????????????????????????????? | | ?????????????????????????????????????????????????? | | ?????????????????????????????????????????????????? | | ?????????????????????????????????????????????????? | +----------------------------------------------------+ Best States ------------- Heat Dissipation 39 Energy Generation 14 Energy Capacity 250 Matter Stores 300 Matter Capacity 300 Sight Range 16 Terrain Scan Density 10 Armor Coverage 150 Evasion (%) 40 Targeting Accuracy 5 Recoil Reduction 2 Item Schematics ----------------- None Robot Schematics ------------------ None Fabricated ------------ Nothing Repaired ---------- Nothing Studied --------- None Alien Tech Used ----------------- None Achievements -------------- None Challenges ------------ None Game ------ Seed DeliveryLargeReactor Manual? 0 Play Time 00:09:52 Cumulative 425.1 hours Start 2026.09.18 @ 11:51:35 End 2026.09.18 @ 11:58:47 Sessions 1 Manual Loads 0 Difficulty Rogue Special Mode None Game No. 375 Rogue 321 Adventurer 54 Explorer 0 Win Type - Total 25 Types 15/2/1/1/1/1/1/1/1/1 Lore% 83 Gallery% 72 Achievement% 72 Wizard Run 0 Options --------- Layout 1 ASCII 0 Keyboard 0 Movement Mouse Keybinds 1 Fullscreen 2 Font 32/Tamsyn Map View 50x35 Zoom Use 0% Tactical HUD 1 Map Filters NONE Filters NONE Steam 1 RUN: a59a6c6a-8886-498b-bdd3-d418bb85ca51